[Event "*** Titled Tuesday 3|2 Blitz (Late)"]
[Site "Chess.com"]
[Date "2016.11.01"]
[Round "2"]
[White "dretch"]
[Black "Rozum_Ivan"]
[Result "1/2-1/2"]
[WhiteElo "2635"]
[BlackElo "2588"]
[TimeControl "180+2"]
[EndTime "17:25:13 PDT"]
[Termination "Game drawn by agreement"]

1. d4 {[%clk 0:03:01.9]} 1... Nf6 {[%clk 0:02:58.2]} 2. c4 {[%clk 0:03:02.8]}
2... e6 {[%clk 0:02:58]} 3. Nc3 {[%clk 0:03:04]} 3... d5 {[%clk 0:02:58.4]} 4.
cxd5 {[%clk 0:03:04.7]} 4... exd5 {[%clk 0:02:59.6]} 5. Bg5 {[%clk 0:03:03.4]}
5... c6 {[%clk 0:03:00.7]} 6. e3 {[%clk 0:03:03.5]} 6... Bf5 {[%clk 0:03:00.8]}
7. Qf3 {[%clk 0:03:04.2]} 7... Bg6 {[%clk 0:03:02.3]} 8. Bxf6 {[%clk 0:03:05.1]}
8... Qxf6 {[%clk 0:03:04.2]} 9. Qxf6 {[%clk 0:03:06.5]} 9... gxf6 {[%clk
0:03:06.1]} 10. Nf3 {[%clk 0:03:07.6]} 10... Nd7 {[%clk 0:03:06.4]} 11. Nh4
{[%clk 0:03:08.8]} 11... Be7 {[%clk 0:03:03.5]} 12. Ne2 {[%clk 0:03:03.2]} 12...
f5 {[%clk 0:03:03.2]} 13. Nf3 {[%clk 0:03:04.2]} 13... Bb4+ {[%clk 0:02:53.9]}
14. Nc3 {[%clk 0:02:38]} 14... Bd6 {[%clk 0:02:53.2]} 15. Bd3 {[%clk 0:02:34]}
15... Nf6 {[%clk 0:02:49.1]} 16. g3 {[%clk 0:02:26.9]} 16... Ne4 {[%clk
0:02:47.2]} 17. Nh4 {[%clk 0:02:24.4]} 17... Be7 {[%clk 0:02:46.2]} 18. Ng2
{[%clk 0:02:21.9]} 18... Kf8 {[%clk 0:02:42.5]} 19. h4 {[%clk 0:02:19.8]} 19...
h6 {[%clk 0:02:36.3]} 20. Nf4 {[%clk 0:02:09.6]} 20... Kg7 {[%clk 0:02:37.1]}
21. Nce2 {[%clk 0:02:00.5]} 21... a5 {[%clk 0:02:35]} 22. a3 {[%clk 0:01:21.7]}
22... Rhd8 {[%clk 0:02:35.1]} 23. Rg1 {[%clk 0:01:13.7]} 23... Rac8 {[%clk
0:02:20.7]} 24. Rd1 {[%clk 0:00:58]} 24... Bf6 {[%clk 0:02:12.5]} 25. Kf1 {[%clk
0:00:56]} 25... h5 {[%clk 0:01:58.7]} 26. Kg2 {[%clk 0:00:46.8]} 26... c5 {[%clk
0:01:45.8]} 27. f3 {[%clk 0:00:42.3]} 27... cxd4 {[%clk 0:01:25.3]} 28. Nxd4
{[%clk 0:00:36]} 28... Bxd4 {[%clk 0:00:55.5]} 29. exd4 {[%clk 0:00:36.5]} 29...
Nd6 {[%clk 0:00:49.7]} 30. Rge1 {[%clk 0:00:32.6]} 30... Nc4 {[%clk 0:00:49.3]}
31. Re2 {[%clk 0:00:31.9]} 31... Kf6 {[%clk 0:00:48.6]} 32. Kf2 {[%clk 0:00:28]}
32... Rd6 {[%clk 0:00:48]} 33. Rc1 {[%clk 0:00:25]} 33... Nb6 {[%clk 0:00:29.7]}
34. Rc5 {[%clk 0:00:22.8]} 34... a4 {[%clk 0:00:24.8]} 35. Rb5 {[%clk
0:00:19.8]} 35... Rcd8 {[%clk 0:00:23.2]} 36. Rc2 {[%clk 0:00:18.1]} 36... R8d7
{[%clk 0:00:22]} 37. Rcc5 {[%clk 0:00:18.4]} 37... Kg7 {[%clk 0:00:21.3]} 38.
Ke2 {[%clk 0:00:18.2]} 38... f6 {[%clk 0:00:21.6]} 39. Nxg6 {[%clk 0:00:17.5]}
39... Kxg6 {[%clk 0:00:22.9]} 40. g4 {[%clk 0:00:19.2]} 40... hxg4 {[%clk
0:00:23.8]} 41. fxg4 {[%clk 0:00:20.6]} 41... Kg7 {[%clk 0:00:23.6]} 42. Bxf5
{[%clk 0:00:21.6]} 42... Re7+ {[%clk 0:00:25.1]} 43. Kf2 {[%clk 0:00:21.7]}
43... Nc4 {[%clk 0:00:19.7]} 44. Rxd5 {[%clk 0:00:20.9]} 44... Rxd5 {[%clk
0:00:20.5]} 45. Rxd5 {[%clk 0:00:22.2]} 45... Nxb2 {[%clk 0:00:22.2]} 46. Ra5
{[%clk 0:00:17.4]} 46... Nd1+ {[%clk 0:00:18.8]} 47. Kg3 {[%clk 0:00:17]} 47...
Re3+ {[%clk 0:00:18.7]} 48. Kf4 {[%clk 0:00:18.2]} 48... Rxa3 {[%clk 0:00:20.4]}
49. Ra7 {[%clk 0:00:17.6]} 49... Rb3 {[%clk 0:00:12.1]} 50. Rxa4 {[%clk
0:00:17.8]} 50... Nc3 {[%clk 0:00:13.6]} 51. Ra5 {[%clk 0:00:16.8]} 51... Ne2+
{[%clk 0:00:14.5]} 52. Ke4 {[%clk 0:00:18.2]} 52... Rb4 {[%clk 0:00:14.4]} 53.
Rc5 {[%clk 0:00:08.5]} 53... Nxd4 {[%clk 0:00:13.3]} 54. Rc7+ {[%clk 0:00:09.1]}
54... Kf8 {[%clk 0:00:14.5]} 55. Kd5 {[%clk 0:00:08.7]} 55... Nxf5 {[%clk
0:00:07.8]} 56. gxf5 {[%clk 0:00:10.6]} 56... Rxh4 {[%clk 0:00:06.9]} 57. Ke6
{[%clk 0:00:11.9]} 57... Kg8 {[%clk 0:00:05.4]} 58. Rxb7 {[%clk 0:00:12.1]}
58... Ra4 {[%clk 0:00:02.9]} 59. Rb6 {[%clk 0:00:09.5]} 59... Kg7 {[%clk
0:00:04]} 60. Rb7+ {[%clk 0:00:10.9]} 60... Kg8 {[%clk 0:00:05]} 61. Kxf6 {[%clk
0:00:12]} 61... Ra6+ {[%clk 0:00:06.2]} 62. Ke7 {[%clk 0:00:13]} 62... Kg7
{[%clk 0:00:06.4]} 63. Rc7 {[%clk 0:00:12.6]} 63... Rf6 {[%clk 0:00:06.9]} 64.
Rc5 {[%clk 0:00:12.2]} 64... Ra6 {[%clk 0:00:07.3]} 65. Rb5 {[%clk 0:00:11.3]}
65... Ra7+ {[%clk 0:00:07.8]} 66. Ke6 {[%clk 0:00:12.2]} 66... Ra6+ {[%clk
0:00:09.2]} 67. Ke5 {[%clk 0:00:13.3]} 67... Kf7 {[%clk 0:00:10.7]} 68. Rb7+
{[%clk 0:00:14.3]} 68... Kf8 {[%clk 0:00:12.2]} 69. Kf4 {[%clk 0:00:15.1]} 69...
Rc6 {[%clk 0:00:11.7]} 70. Kg5 {[%clk 0:00:15.9]} 70... Ra6 {[%clk 0:00:12.8]}
71. Rb8+ {[%clk 0:00:16.6]} 71... Kf7 {[%clk 0:00:13.9]} 72. Rb2 {[%clk
0:00:18.2]} 72... Rc6 {[%clk 0:00:14]} 73. Rh2 {[%clk 0:00:19]} 73... Ra6 {[%clk
0:00:13.2]} 74. Rh7+ {[%clk 0:00:18.7]} 74... Kg8 {[%clk 0:00:14.1]} 75. Rc7
{[%clk 0:00:19.7]} 75... Kf8 {[%clk 0:00:15]} 76. Rb7 {[%clk 0:00:20]} 76... Rc6
{[%clk 0:00:15.9]} 77. Kf4 {[%clk 0:00:19.7]} 77... Ra6 {[%clk 0:00:15.7]} 78.
Ke5 {[%clk 0:00:19.9]} 78... Ra5+ {[%clk 0:00:15.9]} 79. Kf6 {[%clk 0:00:20.9]}
79... Ra6+ {[%clk 0:00:17.4]} 80. Kg5 {[%clk 0:00:22.6]} 80... Rc6 {[%clk
0:00:18.6]} 81. Ra7 {[%clk 0:00:22]} 81... Rb6 {[%clk 0:00:19.7]} 82. f6 {[%clk
0:00:22.6]} 82... Rb1 {[%clk 0:00:19.8]} 83. Ra8+ {[%clk 0:00:23.3]} 83... Kf7
{[%clk 0:00:20.7]} 84. Ra7+ {[%clk 0:00:24.6]} 84... Kf8 {[%clk 0:00:22.2]} 85.
Kg6 {[%clk 0:00:23.3]} 85... Rg1+ {[%clk 0:00:22.3]} 86. Kf5 {[%clk 0:00:24.6]}
1/2-1/2

[Event "*** Titled Tuesday 3|2 Blitz (Late)"]
[Site "Chess.com"]
[Date "2016.11.01"]
[Round "2"]
[White "theprosecution1"]
[Black "GMMelik"]
[Result "1/2-1/2"]
[WhiteElo "2498"]
[BlackElo "2367"]
[TimeControl "180+2"]
[EndTime "17:25:19 PDT"]
[Termination "Game drawn by repetition"]

1. e4 {[%clk 0:03:02]} 1... e5 {[%clk 0:03:00.5]} 2. Nf3 {[%clk 0:02:59.7]} 2...
Nc6 {[%clk 0:03:01.3]} 3. Bb5 {[%clk 0:03:01.3]} 3... f5 {[%clk 0:03:02.4]} 4.
d3 {[%clk 0:03:02]} 4... fxe4 {[%clk 0:03:03.5]} 5. dxe4 {[%clk 0:03:03.9]} 5...
Nf6 {[%clk 0:03:04.6]} 6. O-O {[%clk 0:03:04.5]} 6... Bc5 {[%clk 0:03:05]} 7.
Qe2 {[%clk 0:03:05.5]} 7... Nd4 {[%clk 0:03:05.6]} 8. Nxd4 {[%clk 0:03:05.1]}
8... Bxd4 {[%clk 0:03:07.5]} 9. a4 {[%clk 0:03:01.8]} 9... a6 {[%clk 0:02:55]}
10. Bc4 {[%clk 0:03:02.1]} 10... d6 {[%clk 0:02:56.3]} 11. Kh1 {[%clk
0:02:52.6]} 11... Qe7 {[%clk 0:02:55.6]} 12. Nd2 {[%clk 0:02:51.6]} 12... Be6
{[%clk 0:02:54.5]} 13. c3 {[%clk 0:02:49.4]} 13... Ba7 {[%clk 0:02:51]} 14. a5
{[%clk 0:02:36.4]} 14... O-O {[%clk 0:02:48.1]} 15. f3 {[%clk 0:02:38]} 15...
Kh8 {[%clk 0:02:48.8]} 16. Bxe6 {[%clk 0:02:34.5]} 16... Qxe6 {[%clk 0:02:49.8]}
17. Nc4 {[%clk 0:02:36.4]} 17... Nh5 {[%clk 0:02:37.7]} 18. b4 {[%clk
0:02:36.9]} 18... Nf4 {[%clk 0:02:27.9]} 19. Bxf4 {[%clk 0:02:36.9]} 19... Rxf4
{[%clk 0:02:29.8]} 20. Rab1 {[%clk 0:02:32.5]} 20... Raf8 {[%clk 0:02:01.8]} 21.
b5 {[%clk 0:02:30.6]} 21... Bc5 {[%clk 0:02:02.8]} 22. bxa6 {[%clk 0:02:30.5]}
22... bxa6 {[%clk 0:02:04.7]} 23. Nd2 {[%clk 0:02:20.6]} 23... Rh4 {[%clk
0:01:25.1]} 24. g3 {[%clk 0:01:50.7]} 24... Rh3 {[%clk 0:01:22.1]} 25. Rb7
{[%clk 0:01:14.5]} 25... Qh6 {[%clk 0:01:05.3]} 26. Qg2 {[%clk 0:01:10.9]} 26...
c6 {[%clk 0:00:36.9]} 27. Nb3 {[%clk 0:01:09.3]} 27... Be3 {[%clk 0:00:36]} 28.
Na1 {[%clk 0:01:07.6]} 28... Rh5 {[%clk 0:00:35.5]} 29. Nc2 {[%clk 0:01:07.8]}
29... Bc5 {[%clk 0:00:36.3]} 30. Nb4 {[%clk 0:01:07]} 30... Qe6 {[%clk
0:00:31.5]} 31. Nxa6 {[%clk 0:01:03.6]} 31... Be3 {[%clk 0:00:29.3]} 32. Nb4
{[%clk 0:01:04.6]} 32... d5 {[%clk 0:00:26.9]} 33. a6 {[%clk 0:01:02.8]} 33...
Ra8 {[%clk 0:00:18.4]} 34. Ra1 {[%clk 0:01:00.6]} 34... Rh6 {[%clk 0:00:16.8]}
35. a7 {[%clk 0:00:59.9]} 35... Qc8 {[%clk 0:00:14.5]} 36. Re7 {[%clk
0:01:01.5]} 36... Re6 {[%clk 0:00:14.7]} 37. Rxe6 {[%clk 0:00:54.7]} 37... Qxe6
{[%clk 0:00:15.7]} 38. Qe2 {[%clk 0:00:56.6]} 38... Rxa7 {[%clk 0:00:15.8]} 39.
Rxa7 {[%clk 0:00:55.4]} 39... Bxa7 {[%clk 0:00:17.7]} 40. Qa6 {[%clk 0:00:56.5]}
40... Bb8 {[%clk 0:00:17.9]} 41. Qa8 {[%clk 0:00:56.4]} 41... Qg8 {[%clk
0:00:18]} 42. Qxc6 {[%clk 0:00:55.8]} 42... d4 {[%clk 0:00:17.5]} 43. cxd4
{[%clk 0:00:57]} 43... exd4 {[%clk 0:00:18.1]} 44. Qd5 {[%clk 0:00:58.6]} 44...
Qxd5 {[%clk 0:00:18]} 45. exd5 {[%clk 0:01:00.5]} 45... Bd6 {[%clk 0:00:18.6]}
46. Nd3 {[%clk 0:01:01]} 46... Kg8 {[%clk 0:00:19.6]} 47. f4 {[%clk 0:01:02.9]}
47... Kf7 {[%clk 0:00:20.8]} 48. Kg2 {[%clk 0:01:04.8]} 48... g5 {[%clk
0:00:21.5]} 49. Kf3 {[%clk 0:01:06.7]} 49... gxf4 {[%clk 0:00:22.4]} 50. gxf4
{[%clk 0:01:08.6]} 50... Kg6 {[%clk 0:00:23.6]} 51. Ke4 {[%clk 0:01:10.5]} 51...
Kh5 {[%clk 0:00:24.9]} 52. Kxd4 {[%clk 0:01:11.1]} 52... Kg4 {[%clk 0:00:26.2]}
53. Ke4 {[%clk 0:01:12.3]} 53... h5 {[%clk 0:00:25.9]} 54. Nf2+ {[%clk
0:01:06.7]} 54... Kh4 {[%clk 0:00:25.4]} 55. Nd3 {[%clk 0:00:30.3]} 55... Kh3
{[%clk 0:00:24.2]} 56. f5 {[%clk 0:00:22.4]} 56... Kxh2 {[%clk 0:00:25.2]} 57.
f6 {[%clk 0:00:22.5]} 57... Kg3 {[%clk 0:00:26.4]} 58. Ne5 {[%clk 0:00:22.1]}
58... h4 {[%clk 0:00:26.6]} 59. Nc4 {[%clk 0:00:15.4]} 59... Bf8 {[%clk
0:00:24.9]} 60. d6 {[%clk 0:00:12.8]} 60... Bxd6 {[%clk 0:00:25.5]} 61. Nxd6
{[%clk 0:00:13.6]} 61... h3 {[%clk 0:00:27.4]} 62. f7 {[%clk 0:00:15.2]} 62...
h2 {[%clk 0:00:28.3]} 63. f8=Q {[%clk 0:00:16.8]} 63... h1=Q+ {[%clk 0:00:29.8]}
64. Ke5 {[%clk 0:00:18.4]} 64... Qa1+ {[%clk 0:00:26.2]} 65. Ke6 {[%clk
0:00:19]} 65... Qa2+ {[%clk 0:00:24.6]} 66. Ke7 {[%clk 0:00:19.2]} 66... Qa7+
{[%clk 0:00:25.3]} 67. Kf6 {[%clk 0:00:18.3]} 67... Qd4+ {[%clk 0:00:26]} 68.
Ke6 {[%clk 0:00:19.8]} 68... Qe3+ {[%clk 0:00:23.5]} 69. Kd7 {[%clk 0:00:17.5]}
69... Qa7+ {[%clk 0:00:24.4]} 70. Kc6 {[%clk 0:00:18.5]} 70... Qa6+ {[%clk
0:00:24.2]} 71. Kd5 {[%clk 0:00:18.9]} 71... Qd3+ {[%clk 0:00:25]} 72. Ke5
{[%clk 0:00:19.4]} 72... Qc3+ {[%clk 0:00:21.4]} 73. Kd5 {[%clk 0:00:19.2]}
73... Qd3+ {[%clk 0:00:22]} 74. Kc6 {[%clk 0:00:20.9]} 74... Qa6+ {[%clk
0:00:22.7]} 75. Kc7 {[%clk 0:00:21.5]} 75... Qa5+ {[%clk 0:00:20.2]} 76. Kd7
{[%clk 0:00:22]} 76... Qa7+ {[%clk 0:00:20.3]} 77. Ke6 {[%clk 0:00:22.6]} 77...
Qe3+ {[%clk 0:00:21.4]} 78. Kf6 {[%clk 0:00:21.6]} 78... Qd4+ {[%clk 0:00:21.3]}
79. Ke7 {[%clk 0:00:21.8]} 79... Qa7+ {[%clk 0:00:19.3]} 80. Kd8 {[%clk
0:00:19]} 80... Qb6+ {[%clk 0:00:17]} 81. Kc8 {[%clk 0:00:17.4]} 81... Qc5+
{[%clk 0:00:12.8]} 82. Kb8 {[%clk 0:00:15.8]} 82... Qb4+ {[%clk 0:00:13.9]} 83.
Kc7 {[%clk 0:00:16.5]} 83... Qc5+ {[%clk 0:00:13.1]} 84. Kd7 {[%clk 0:00:17.1]}
84... Qa7+ {[%clk 0:00:13.8]} 85. Ke6 {[%clk 0:00:18.6]} 85... Qe3+ {[%clk
0:00:14.6]} 86. Kd5 {[%clk 0:00:19.8]} 86... Qd3+ {[%clk 0:00:15.3]} 1/2-1/2

[Event "*** Titled Tuesday 3|2 Blitz (Late)"]
[Site "Chess.com"]
[Date "2016.11.01"]
[Round "2"]
[White "joppie2"]
[Black "Genghis_K"]
[Result "1/2-1/2"]
[WhiteElo "2536"]
[BlackElo "2684"]
[TimeControl "180+2"]
[EndTime "17:25:21 PDT"]
[Termination "Game drawn by repetition"]

1. e4 {[%clk 0:03:02]} 1... c5 {[%clk 0:02:56.3]} 2. Nc3 {[%clk 0:03:02.3]} 2...
Nc6 {[%clk 0:02:56.9]} 3. Bb5 {[%clk 0:03:03]} 3... Nd4 {[%clk 0:02:57.3]} 4.
Nf3 {[%clk 0:03:04.4]} 4... a6 {[%clk 0:02:56.9]} 5. Bd3 {[%clk 0:03:02.5]} 5...
Nxf3+ {[%clk 0:02:49.9]} 6. Qxf3 {[%clk 0:03:03.1]} 6... e6 {[%clk 0:02:51]} 7.
b3 {[%clk 0:02:59.7]} 7... Bd6 {[%clk 0:02:43.9]} 8. Bb2 {[%clk 0:02:59.7]} 8...
Be5 {[%clk 0:02:44.8]} 9. Qg4 {[%clk 0:02:50.9]} 9... h5 {[%clk 0:02:38.6]} 10.
Qe2 {[%clk 0:02:49.5]} 10... Ne7 {[%clk 0:02:35.6]} 11. g3 {[%clk 0:02:47.7]}
11... Nc6 {[%clk 0:02:34.1]} 12. f4 {[%clk 0:02:47.1]} 12... Bd4 {[%clk
0:02:35.5]} 13. O-O-O {[%clk 0:02:41.3]} 13... b5 {[%clk 0:02:33]} 14. e5 {[%clk
0:02:42.6]} 14... d5 {[%clk 0:02:30.5]} 15. exd6 {[%clk 0:02:43.6]} 15... Qxd6
{[%clk 0:02:29.6]} 16. Kb1 {[%clk 0:02:42.3]} 16... Bb7 {[%clk 0:02:27.3]} 17.
Ne4 {[%clk 0:02:43.3]} 17... Qe7 {[%clk 0:02:28.3]} 18. c3 {[%clk 0:02:35]}
18... Bf6 {[%clk 0:02:27.7]} 19. Qf2 {[%clk 0:02:36.2]} 19... c4 {[%clk
0:02:23.1]} 20. bxc4 {[%clk 0:02:33.7]} 20... bxc4 {[%clk 0:02:21.6]} 21. Bxc4
{[%clk 0:02:33.4]} 21... Na5 {[%clk 0:02:18.5]} 22. Bd3 {[%clk 0:02:09.1]} 22...
Bxe4 {[%clk 0:01:49.9]} 23. Bxe4 {[%clk 0:02:08.8]} 23... Rb8 {[%clk 0:01:51.4]}
24. Ka1 {[%clk 0:02:06]} 24... Nc4 {[%clk 0:01:10.6]} 25. Rb1 {[%clk 0:01:45.5]}
25... O-O {[%clk 0:01:05.9]} 26. d4 {[%clk 0:01:29.3]} 26... Rb6 {[%clk
0:00:52.5]} 27. Qe2 {[%clk 0:01:27]} 27... Qc7 {[%clk 0:00:42.2]} 28. Bc1 {[%clk
0:00:58.5]} 28... Rfb8 {[%clk 0:00:37.4]} 29. Rxb6 {[%clk 0:00:58.8]} 29... Nxb6
{[%clk 0:00:36.5]} 30. Qc2 {[%clk 0:00:52.9]} 30... Nc4 {[%clk 0:00:31.6]} 31.
Bd3 {[%clk 0:00:50.8]} 31... Nd6 {[%clk 0:00:29.1]} 32. Bb2 {[%clk 0:00:46.1]}
32... Rc8 {[%clk 0:00:27.9]} 33. Rc1 {[%clk 0:00:43.9]} 33... a5 {[%clk
0:00:28.6]} 34. c4 {[%clk 0:00:43.6]} 34... Rb8 {[%clk 0:00:27.7]} 35. c5 {[%clk
0:00:43.4]} 35... Nc8 {[%clk 0:00:26.7]} 36. Bc3 {[%clk 0:00:40.7]} 36... Ne7
{[%clk 0:00:27]} 37. Be4 {[%clk 0:00:40.1]} 37... Rd8 {[%clk 0:00:27.7]} 38. Rd1
{[%clk 0:00:39.4]} 38... g6 {[%clk 0:00:21.6]} 39. Qa4 {[%clk 0:00:34.1]} 39...
Nd5 {[%clk 0:00:20.2]} 40. Bxa5 {[%clk 0:00:34.3]} 40... Qa7 {[%clk 0:00:20.7]}
41. Bxd5 {[%clk 0:00:17.8]} 41... exd5 {[%clk 0:00:21.8]} 42. c6 {[%clk
0:00:14.1]} 42... Ra8 {[%clk 0:00:22.2]} 43. c7 {[%clk 0:00:15.5]} 43... Qc5
{[%clk 0:00:06.9]} 44. Kb1 {[%clk 0:00:11.9]} 44... Qxc7 {[%clk 0:00:08]} 45.
Bxc7 {[%clk 0:00:10.4]} 45... Rxa4 {[%clk 0:00:09.6]} 46. Be5 {[%clk 0:00:11.6]}
46... Be7 {[%clk 0:00:11.2]} 47. Rd3 {[%clk 0:00:10]} 47... f6 {[%clk
0:00:10.5]} 48. Bc7 {[%clk 0:00:11.2]} 48... Rb4+ {[%clk 0:00:09.1]} 49. Kc2
{[%clk 0:00:10.4]} 49... Rc4+ {[%clk 0:00:09.8]} 50. Rc3 {[%clk 0:00:12.1]}
50... Rxd4 {[%clk 0:00:11.1]} 51. Bb6 {[%clk 0:00:12.9]} 51... Re4 {[%clk
0:00:11]} 52. Re3 {[%clk 0:00:11.7]} 52... Rc4+ {[%clk 0:00:09.6]} 53. Kb2
{[%clk 0:00:12]} 53... Kf7 {[%clk 0:00:10.6]} 54. a3 {[%clk 0:00:12.2]} 54...
Rc8 {[%clk 0:00:07.5]} 55. Bd4 {[%clk 0:00:10.3]} 55... Rc4 {[%clk 0:00:09]} 56.
Rd3 {[%clk 0:00:11]} 56... Ra4 {[%clk 0:00:08.7]} 57. Be3 {[%clk 0:00:07.8]}
57... Ke6 {[%clk 0:00:10.1]} 58. Bc1 {[%clk 0:00:08]} 58... Bc5 {[%clk
0:00:10.5]} 59. Kb3 {[%clk 0:00:08.9]} 59... Ra8 {[%clk 0:00:11.8]} 60. a4
{[%clk 0:00:10.5]} 60... Rb8+ {[%clk 0:00:13.2]} 61. Kc2 {[%clk 0:00:11.5]}
61... Ra8 {[%clk 0:00:14.5]} 62. Kb3 {[%clk 0:00:12.7]} 62... Rb8+ {[%clk
0:00:15.9]} 63. Kc2 {[%clk 0:00:14.2]} 63... d4 {[%clk 0:00:17.5]} 64. Bd2
{[%clk 0:00:14.8]} 64... Kd5 {[%clk 0:00:18.8]} 65. Rb3 {[%clk 0:00:16]} 65...
Ra8 {[%clk 0:00:19.5]} 66. a5 {[%clk 0:00:17.3]} 66... Kc4 {[%clk 0:00:21]} 67.
Rb7 {[%clk 0:00:18]} 67... Re8 {[%clk 0:00:18]} 68. Rc7 {[%clk 0:00:18]} 68...
d3+ {[%clk 0:00:15.9]} 69. Kd1 {[%clk 0:00:18.9]} 69... Kb5 {[%clk 0:00:14.2]}
70. a6 {[%clk 0:00:18]} 70... Bb6 {[%clk 0:00:12.5]} 71. Rd7 {[%clk 0:00:18]}
71... Kxa6 {[%clk 0:00:12.2]} 72. Rxd3 {[%clk 0:00:16.6]} 72... Bc5 {[%clk
0:00:13.6]} 73. Bc3 {[%clk 0:00:17.2]} 73... f5 {[%clk 0:00:13.6]} 74. Rd7
{[%clk 0:00:17.3]} 74... Re6 {[%clk 0:00:13.8]} 75. Be5 {[%clk 0:00:16.5]} 75...
Kb5 {[%clk 0:00:12.5]} 76. Ke2 {[%clk 0:00:17.2]} 76... Kc6 {[%clk 0:00:13.3]}
77. Rd1 {[%clk 0:00:18.3]} 77... Bd6 {[%clk 0:00:11.9]} 78. Rxd6+ {[%clk
0:00:13.2]} 78... Rxd6 {[%clk 0:00:13.4]} 79. Bxd6 {[%clk 0:00:15.1]} 79... Kxd6
{[%clk 0:00:15.3]} 80. Kd2 {[%clk 0:00:14.9]} 80... Kd5 {[%clk 0:00:12.4]} 81.
Kd3 {[%clk 0:00:16.1]} 81... Kc5 {[%clk 0:00:14]} 82. Kc3 {[%clk 0:00:16.7]}
82... Kd5 {[%clk 0:00:15.6]} 83. Kd3 {[%clk 0:00:18.3]} 83... Kc5 {[%clk
0:00:17.2]} 84. Kc3 {[%clk 0:00:16.6]} 84... Kd5 {[%clk 0:00:18.5]} 85. Kd3
{[%clk 0:00:18.3]} 85... Kc5 {[%clk 0:00:20]} 86. Kc3 {[%clk 0:00:19.9]} 1/2-1/2